Cogmind - Beta 12 @@@ ROGUE MODE // 2024.02.27 @ 01:02:13 Player: Takagiro Result: Destroyed by G-34 Mercenary with Small Laser Performance ------------- Evolutions (1) 500 Regions Visited (3) 600 Robots Destroyed (29) 145 Value Destroyed (607) 607 Prototype IDs (0) 0 Alien Tech Used (0) 0 Bonus (0) 0 TOTAL SCORE: 1852 Bonus ------- None Cogmind --------- Core Integrity 0/400 Matter 231/300 Energy 80/125 System Corruption 0% Temperature Danger (419) Movement Walking (190) Ox1 Location -9/Storage Parts ------- > --- POWER (1) -------- Light Ion Engine > --- PROPULSION (2) --- Improved Aluminum Leg Improved Aluminum Leg > --- UTILITY (3) ------ Large Storage Unit Targeting Computer Hardened Light Armor Plating > --- WEAPON (3) ------- Beam Rifle Assault Rifle Heavy Assault Rifle > --- INVENTORY (15) --- Ion Engine Light Ion Engine Light Treads Light Treads Improved Treads Improved Treads Aluminum Leg Aluminum Leg Aluminum Leg Wheel Targeting Computer Peak State ------------ > --- POWER ------------ Light Ion Engine > --- PROPULSION ------- Improved Aluminum Leg Improved Aluminum Leg > --- UTILITY ---------- Large Storage Unit Targeting Computer Hardened Light Armor Plating > --- WEAPON ----------- Heavy EM Pulse Gun Beam Rifle Assault Rifle > --- INVENTORY -------- Light Ion Engine Light Ion Engine Light Treads Light Treads Aluminum Leg Aluminum Leg Aluminum Leg Wheel Wheel Targeting Computer [Rating: 15] Favorites ----------- Power Light Ion Engine Engine Light Ion Engine Propulsion Improved Aluminum Leg Leg Improved Aluminum Leg Wheel Wheel Utility Large Storage Unit Storage Large Storage Unit Processor Targeting Computer Protection Hardened Light Armor Plating Weapon Medium Laser Energy Gun Medium Laser Ballistic Gun Assault Rifle Launcher Grenade Launcher Build | -11 -10 -9 -9 ------- Run | Jun Mat Mat Sto Slots Evolved 2 | . . 2 . Power . | . . . . Propulsion . | . . . . Utility 1 | . . 1 . Weapon 1 | . . 1 . Parts Attached 25 | 6 2 12 5 Power 3 | 1 . 1 1 Engine 3 | 1 . 1 1 Core . | . . . . Reactor . | . . . . Propulsion 4 | 2 . 2 . Treads . | . . . . Leg 2 | . . 2 . Wheel 2 | 2 . . . Hover . | . . . . Flight . | . . . . Utility 7 | 1 2 2 2 Device . | . . . . Storage 2 | 1 1 . . Processor 3 | . . 1 2 Hackware . | . . . . Protection 2 | . 1 1 . Artifact . | . . . . Weapon 11 | 2 . 7 2 Energy Gun 8 | 2 . 5 1 Energy Cannon . | . . . . Ballistic Gun 2 | . . 1 1 Ballistic Cannon . | . . . . Launcher 1 | . . 1 . Special Weapon . | . . . . Impact Weapon . | . . . . Slashing Weapon . | . . . . Piercing Weapon . | . . . . Special Melee Weapon . | . . . . Unidentified Prototypes . | . . . . Parts Lost 14 | . . 10 4 Power 2 | . . 1 1 Propulsion 2 | . . 2 . Utility 3 | . . 1 2 Weapon 7 | . . 6 1 Highest Loss Streak 10 | . . 10 3 To Critical Strikes . | . . . . Average Slot Usage (%) 87 | . 93 78 96 Engine 10 | . 14 8 10 Leg 11 | . . 9 22 Wheel 9 | . 28 5 . Storage 11 | . 14 11 11 Processor 7 | . . 9 11 Protection 8 | . 7 8 11 Energy Gun 20 | . 28 17 19 Ballistic Gun 6 | . . 6 11 Naked Turns . | . . . . Heaviest Build 36 | 14 32 36 36 Greatest Support 26 | 26 26 26 26 Greatest Overweight (x) 10 | 1 1 10 1 Average Overweight (x) . | . . 1 1 Largest Inventory Capacity 15 | 8 15 15 15 Average Capacity 13 | 7 10 15 15 Most Carried 15 | 7 15 15 15 Average Carried 10 | 4 7 11 13 Final Capacity 15 | 8 15 15 15 Final Carried 15 | 6 15 15 11 Class Distribution -------------------- 53% | Mutant 46% | Gunner Dominant Class ---------------- Mutant | -10/Materials Gunner | -9/Materials Gunner | -9/Storage Resources | -11 -10 -9 -9 ----------- Run | Jun Mat Mat Sto Matter Collected 569 | 175 50 284 60 Remotely . | . . . . Salvage Created 782 | . 50 463 269 Parts 67 | . 4 45 18 Haulers Intercepted . | . . . . Recyclers Shooed 2 | . . 1 1 Parts Field Recycled . | . . . . Retrieved Matter . | . . . . Parts Self-Destructed . | . . . . Prevented . | . . . . Kills | -11 -10 -9 -9 ------- Run | Jun Mat Mat Sto Combat Hostiles Destroyed 21 | . 3 11 7 Guns 16 | . 3 6 7 AOE 5 | . . 5 . Classes Destroyed 7 | . 1 5 1 Builder 4 | . . 4 . Recycler 1 | . . 1 . Mechanic 1 | . . . 1 Watcher 2 | . . 2 . Swarmer 11 | . 3 4 4 Grunt 7 | . . 6 1 Sentry 3 | . . 1 2 Best Kill Streak 10 | . 3 10 5 Combat Bots Only 6 | . 3 6 5 Max Kills in Single Turn 2 | . 1 2 1 Gunslinging . | . . . . Exploded 2 | . . 2 . Melee . | . . . . Uniques/NPCs Destroyed . | . . . . Combat | -11 -10 -9 -9 -------- Run | Jun Mat Mat Sto Damage Taken 1629 | . 85 858 686 Core 407 | . 7 259 141 Absorbed by Shields . | . . . . Regen/Repaired (Parts) 56 | . . . 56 Core Remaining (%) 98 | 100 97 . . Volleys Fired 61 | . 10 30 21 Largest 3 | . 2 3 3 Hottest 145 | . 100 145 121 Shots Fired 132 | . 20 60 52 Gun 129 | . 20 57 52 Cannon . | . . . . Launcher 3 | . . 3 . Special . | . . . . Kinetic 40 | . . 19 21 Thermal 55 | . 20 18 17 Explosive 3 | . . 3 . Electromagnetic 34 | . . 20 14 Robot Hit Streak 15 | . 4 15 7 Robot Miss Streak 4 | . 3 4 3 Penetration Max . | . . . . Secondary Targets 4 | . 1 2 1 Max Gunslinging Chain 1 | . 1 1 1 Shots Hit Robots 77 | . 12 36 29 Core Hits 38 | . 4 24 10 Critical Kills . | . . . . Critical Parts Destroyed 1 | . . 1 . Critical Strikes 6 | . 2 3 1 Burn 4 | . 2 1 1 Destroy 1 | . . 1 . Corrupt 1 | . . 1 . Melee Attacks . | . . . . Impact . | . . . . Slashing . | . . . . Piercing . | . . . . Sneak Attacks . | . . . . Combat Hostiles . | . . . . Follow-up Attacks . | . . . . Damage Inflicted 1684 | . 148 1107 429 Guns 1121 | . 148 544 429 Cannons . | . . . . Explosions 563 | . . 563 . Melee . | . . . . Ramming . | . . . . Kinetic 318 | . . 185 133 Thermal 646 | . 148 352 146 Explosive 314 | . . 314 . Electromagnetic 406 | . . 256 150 Impact . | . . . . Slashing . | . . . . Piercing . | . . . . Highest Corruption 2 | . 2 . . Average Corruption 2 | . 2 . . Corruption Purged . | . . . . Corruption Blocked . | . . . . Effects 1 | . 1 . . Message Errors 1 | . 1 . . Overload Shots . | . . . . Overflow Damage 29 | . . 29 . Projectiles . | . . . . Explosions 29 | . . 29 . Melee . | . . . . Knockbacks . | . . . . Impact . | . . . . Kinetic . | . . . . Secondary . | . . . . Self-Inflicted Damage 14 | . . 14 . Shots 1 | . . 1 . Rammed . | . . . . Targets Rammed . | . . . . Kicked . | . . . . Crushed . | . . . . Highest Temperature 589 | . 272 589 443 Average Temperature 219 | . 122 232 258 Received Heat Transfer 600 | . . 378 222 Effects 22 | . . 14 8 Shutdowns 3 | . . 2 1 Energy Bleed 1 | . . . 1 Interference 7 | . . 3 4 Matter Decay 3 | . . 2 1 Damage (minor) 2 | . . 1 1 Damage (major) 6 | . . 6 . Siege Activations . | . . . . Robots Corrupted . | . . . . Combat Hostiles . | . . . . Parts Fried . | . . . . Impact Corruptions . | . . . . Robots Melted . | . . . . Combat Hostiles . | . . . . Parts Melted 7 | . 2 2 3 Heat Transferred 1706 | . 592 670 444 Parts Sabotaged . | . . . . Parts Stolen . | . . . . Parts Stripped . | . . . . Power Chain Reactions 2 | . . 2 . Missiles Intercepted . | . . . . Alert | -11 -10 -9 -9 ------- Run | Jun Mat Mat Sto Peak Influence 372 | . 70 372 341 Initial 156 | . . 29 156 Average 167 | . 51 244 204 Maximum Alert Level 1 | . . 1 1 Low Security (%) 62 | 100 100 27 70 Level 1 37 | . . 72 29 Level 2 . | . . . . Level 3 . | . . . . Level 4 . | . . . . Level 5 . | . . . . High Security . | . . . . Max Security . | . . . . Squads Dispatched 3 | . . 2 1 Investigation 1 | . . . 1 Extermination . | . . . . Reinforcement 2 | . . 2 . Assault . | . . . . Garrison . | . . . . Intercept . | . . . . Searches Triggered . | . . . . Construction Impeded 1 | . . 1 . Haulers Reinforced . | . . . . Active Scanning Responses . | . . . . Cargo Convoy Interrupts . | . . . . Stealth | -11 -10 -9 -9 --------- Run | Jun Mat Mat Sto Distress Signals 2 | . . 2 . Communications Jammed . | . . . . Distress Signals . | . . . . Times Spotted 27 | . 5 13 9 Peak Tracking Total 7 | . 3 7 7 Tactical Retreats 2 | . . 1 1 Traps | -11 -10 -9 -9 ------- Run | Jun Mat Mat Sto Traps Triggered 3 | . 1 . 2 Indirectly . | . . . . Trap Hack Attempts . | . . . . Triggered . | . . . . Disarmed . | . . . . Reprogrammed 2 | . 2 . . Reused . | . . . . Traps Extracted . | . . . . Installed . | . . . . Triggered . | . . . . Machines | -11 -10 -9 -9 ---------- Run | Jun Mat Mat Sto Machines Disabled 4 | . . 4 . Max in Single Turn 3 | . . 3 . Machines Repaired . | . . . . Machines Sabotaged . | . . . . Overloaded Fab Kills . | . . . . Hacking | -11 -10 -9 -9 --------- Run | Jun Mat Mat Sto Machines Accessed 2 | . 1 . 1 Terminals 1 | . 1 . . Fabricators . | . . . . Repair Stations 1 | . . . 1 Recycling Units . | . . . . Scanalyzers . | . . . . Garrison Access . | . . . . Total Hacks 7 | . 4 . 3 Successful 4 | . 1 . 3 Failed 3 | . 3 . . Catastrophic . | . . . . Database Lockouts . | . . . . Manual . | . . . . Terminals 4 | . 4 . . Fabricators . | . . . . Repair Stations 3 | . . . 3 Recycling Units . | . . . . Scanalyzers . | . . . . Garrison Access . | . . . . Terminal Hacks 1 | . 1 . . Reprogram Traps 1 | . 1 . . Fabricator Hacks . | . . . . Repair Station Hacks 3 | . . . 3 Scan Component 2 | . . . 2 Repair 1 | . . . 1 Recycling Unit Hacks . | . . . . Scanalyzer . | . . . . Garrison Access Hacks . | . . . . Unauthorized Hacks . | . . . . Terminals . | . . . . Fabricators . | . . . . Repair Stations . | . . . . Recycling Units . | . . . . Scanalyzers . | . . . . Garrison Access . | . . . . Data Cores Recovered . | . . . . Used . | . . . . Hacking Detections 1 | . . . 1 Full Trace Events 1 | . . . 1 Feedback Events . | . . . . Feedback Blocked . | . . . . Robot Schematics Acquired . | . . . . Robots Built . | . . . . Authchips . | . . . . Time . | . . . . Total Robot Build Rating . | . . . . Part Schematics Acquired . | . . . . Parts Built . | . . . . Authchips . | . . . . Time . | . . . . Total Part Build Rating . | . . . . Parts Repaired 1 | . . . 1 Time 32 | . . . 32 Parts Recycled . | . . . . Recycled Matter . | . . . . Retrieved Matter . | . . . . Retrieved Components . | . . . . Parts Scanalyzed . | . . . . Part Schematics Acquired . | . . . . Parts Damaged . | . . . . Bothacking | -11 -10 -9 -9 ------------ Run | Jun Mat Mat Sto Used RIF Installer . | . . . . Robots Hacked . | . . . . Non-combat . | . . . . Combat . | . . . . Robot Hacks Applied . | . . . . Relay Couplers Released . | . . . . Fabnet Peak Effective % . | . . . . Robots Rewired . | . . . . Allies Hacked . | . . . . Hacks Repelled . | . . . . Allies | -11 -10 -9 -9 -------- Run | Jun Mat Mat Sto Total Allies . | . . . . Largest Group . | . . . . Highest-Rated Group . | . . . . Highest-Rated Ally . | . . . . Total Orders . | . . . . Ally Attacks . | . . . . Total Damage . | . . . . Kills . | . . . . Allies Corrupted . | . . . . Allies Melted . | . . . . Intel | -11 -10 -9 -9 ------- Run | Jun Mat Mat Sto Robot Analysis Total . | . . . . Derelict Logs Recovered . | . . . . Drone Launches . | . . . . Drone Recoveries . | . . . . Exploration | -11 -10 -9 -9 ------------- Run | Jun Mat Mat Sto Turns Passed 694 | 60 158 272 204 Spaces Moved 320 | 49 119 98 54 Core 18 | 11 . 7 . Treads . | . . . . Legs 104 | . . 50 54 Wheels 198 | 38 119 41 . Hover . | . . . . Flight . | . . . . Fastest Speed 50 | 50 90 105 190 Average Speed 133 | 87 94 170 190 Slowest Speed 550 | 100 105 550 190 Overloaded Moves . | . . . . Propulsion Burnouts . | . . . . Robots Hopped . | . . . . Cave-ins Triggered . | . . . . Exploration Rate (%) 11 | 4 20 11 12 Regions Visited 3 Branch Regions 1 Pre-discovered Areas . | . . . . Known Exits Taken . | . . . . Unknown Exits Taken 3 | 1 1 1 . Scrap Searched . | . . . . Spaces Dug . | . . . . Terrain Destroyed 13 | . . 13 . Melee . | . . . . Projectile . | . . . . AOE 13 | . . 13 . Terrain Rammed . | . . . . Walls Destroyed . | . . . . Machines Disabled . | . . . . Actions | -11 -10 -9 -9 --------- Run | Jun Mat Mat Sto Total 476 | 66 144 151 115 Wait 32 | . . . 32 Move 317 | 48 118 97 54 Hop . | . . . . Pick Up 38 | 12 12 12 2 Fast Attach . | . . . . Attach 24 | 6 1 12 5 Detach . | . . . . Swap 1 | . 1 . . Drop 3 | . 2 . 1 Fire 61 | . 10 30 21 Melee . | . . . . Ram . | . . . . Kick . | . . . . Crush . | . . . . Escape Stasis . | . . . . Rewire . | . . . . Trap . | . . . . Miscellaneous . | . . . . Route ------- -11/Junkyard -10/Materials -9/Materials -9/Storage History --------- Turn | Location | Event 12 | -11/Junkyard | Discovered new exit (range 16) 61 | -11/Junkyard | Entered Materials 169 | -10/Materials | Discovered new exit (range 16) 219 | -10/Materials | Entered another Materials area 219 | -9/Materials | Evolved 2 slots: Utility x1, Weapon x1 345 | -9/Materials | Core integrity fell below 50% 379 | -9/Materials | Lost 10 parts (1p2n1u6w) 478 | -9/Materials | Discovered new exit (range 7) 491 | -9/Materials | Entered Storage 542 | -9/Storage | Repaired Beam Rifle 653 | -9/Storage | Core integrity fell below 20% 695 | -9/Storage | Destroyed by G-34 Mercenary with Small Laser Last Messages --------------- Critical hit (Burn: +37). Y-45 Defender destroyed. U-05 Engineer lays Concrete. Overheating: Lgt. Ion Engine damaged (-3). Power failure, Lgt. Ion Engine shutdown. Hvy. EM Pulse Gun destroyed. Lgt. Ion Engine destroyed. Overheating: Energy bleed (-21). Overheating: System interference. Assault Rifle temporarily disabled. Imp. Ion Engine melted. Beam Rifle melted. Y-45 Defender destroyed. Acquired 56 matter. Overheating: Matter decay (-36). Acquired 4 matter. Targeting Computer destroyed. Acquired Hvy. Assault Rifle. G-34 Mercenary destroyed. Switching to secondary target: G-34 Mercenary. Map ----- +----------------------------------------------------+ | ????????????????????????????????????? | | ????????????????????????????????????? | | ????????????????????????????????????? | | ????????????????????????????????????? | | ??????? ??????????????????????????? | | ??????? ??????????????????????????? | | ??????# #?????????????????????????? | | ??????# +?????????????????????????? | | ??????# #?????????????????????????? | | ??????# #?????????????????????????? | | ?##???# #?????????????????????????? | | ## ???# #?????????????????????????? | | # ??# #?????#???????????????????? | | # ?# #?### #???????????????????? | | ? ?+ +? ????????????????????? | | ??? # # ??????????????????????? | | ???? # # ???????????????????????? | | ????? / / ????????????????????????? | | ??????# ^^#?????????????????????????? | | ??????#^ #?????????????????????????? | | ??????# #?????????????????????????? | | ??????# #?????????????????????????? | | ??????# #?????????????????????????? | | ??????# #?????????????????????????? | | ??????# ####??????????????????????? | | ??????# #%@#??????????????????????? | | ??????# #=g"??????????????????????? | | ??????# %g[%"??????????????????????? | | ??????# %=#%="??????????????????????? | | ??????# =!##T#??????????????????????? | | ??????# ####??????????????????????? | | ??????# #?????????????????????????? | | ??????# ###########???????????????? | | ??????# !%# #???????????????? | | ??????# !#= #???????????????? | | ??????# # #???????????????? | | ??????# # #???????????????? | | ??????# " """"" #???????????????? | | ??????# # """"" #???????????????? | | ??????# # """"" #???????????????? | | ??????# # = #???????????????? | | ??????# ####" "####???????????????? | | ??????# #??#"R"#??????????????????? | | ??????#####??#"""#??????????????????? | | ?????????????#####??????????????????? | | ????????????????????????????????????? | | ????????????????????????????????????? | | ????????????????????????????????????? | | ????????????????????????????????????? | | ????????????????????????????????????? | +----------------------------------------------------+ Best States ------------- Heat Dissipation 28 Energy Generation 10 Energy Capacity 250 Matter Stores 300 Matter Capacity 300 Sight Range 16 Terrain Scan Density 10 Armor Coverage 150 Evasion (%) 42 Targeting Accuracy 5 Item Schematics ----------------- None Robot Schematics ------------------ None Fabricated ------------ Nothing Alien Tech Used ----------------- None Achievements -------------- None Challenges ------------ None Game ------ Seed LightningTacticalFacilitator Manual? 0 Play Time 00:11:46 Cumulative 14.7 hours Start 2024.02.27 @ 00:53:10 End 2024.02.27 @ 01:02:13 Sessions 1 Manual Loads 0 Difficulty Rogue Special Mode None Game No. 30 Rogue 17 Adventurer 13 Explorer 0 Win Type - Total 0 Types 0/0/0/0/0/0/0/0/0 Lore% 13 Gallery% 18 Achievement% 14 Wizard Run 0 Options --------- ASCII 0 Keyboard 0 Movement Mouse Keybinds 0 Fullscreen 2 Font 18/SmallcapsGlow Map View 76x50 Tactical HUD 0 Map Filters NONE Filters NONE Steam 1 RUN: d8affdde-e5a8-4d3a-b57f-4266a818607f